Cogmind - Beta 16.1 @@@ ROGUE MODE // 2026.03.12 @ 21:28:40 Player: TheSkyeDoctor Result: Destroyed by H-66 Slayer with Gauss Rifle Performance ------------- Evolutions (4) 2000 Regions Visited (7) 1400 Robots Destroyed (32) 160 Value Destroyed (794) 794 Prototype IDs (2) 40 Alien Tech Used (0) 0 Bonus (140) 140 TOTAL SCORE: 4534 Bonus ------- Follower Combat Kills 140 Cogmind --------- Core Integrity 0/850 Matter 50/300 Energy 98/100 System Corruption 1% Temperature Cool (0) Movement Core (50) Location -6/Factory Parts ------- > --- POWER (1) -------- (None) > --- PROPULSION (5) --- (None) > --- UTILITY (6) ------ (None) > --- WEAPON (3) ------- (None) > --- INVENTORY (5) ---- Wheel Plasma Cannon Assault Cannon Improved Datajack Plasma Cutter Peak State ------------ > --- POWER ------------ Light Deuterium Engine > --- PROPULSION ------- Improved Flight Unit Improved Flight Unit Cesium-ion Thruster Improved VTOL Module Improved VTOL Module > --- UTILITY ---------- Signal Interpreter Light Armor Plating Hacking Suite System Shield > --- WEAPON ----------- Plasma Cannon Assault Cannon Heavy Flail > --- INVENTORY -------- Micro Nuclear Core Wheel Improved Datajack Plasma Cutter [Rating: 39] Favorites ----------- Power Ion Engine Engine Ion Engine Power Core Micro Nuclear Core Propulsion Light Treads Treads Light Treads Flight Unit Improved Flight Unit Utility Seismic Detector Device Seismic Detector Storage Huge Storage Unit Processor Signal Interpreter Hackware Hacking Suite Protection Light Armor Plating Weapon Beam Cannon Energy Gun Small Laser Energy Cannon Beam Cannon Ballistic Gun Assault Rifle Ballistic Cannon Assault Cannon Special Weapon Mining Laser Impact Weapon Heavy Flail Special Melee Weapon Improved Datajack Build | -11 -10 -10 -9 -8 -7 -7 -6 ------- Run | Yrd Mat Min Mat Mat Fac Sto Fac Slots Evolved 8 | . . . 2 2 2 . 2 Power . | . . . . . . . . Propulsion 3 | . . . . 1 2 . . Utility 4 | . . . 2 . . . 2 Weapon 1 | . . . . 1 . . . Parts Attached 42 | 7 2 2 3 7 13 5 3 Power 4 | 1 . . 1 . 1 1 . Engine 3 | 1 . . 1 . 1 . . Core 1 | . . . . . . 1 . Reactor . | . . . . . . . . Propulsion 14 | 2 . . . 2 6 1 3 Treads 4 | 2 . . . 2 . . . Leg . | . . . . . . . . Wheel . | . . . . . . . . Hover . | . . . . . . . . Flight 10 | . . . . . 6 1 3 Utility 13 | 2 . 2 1 3 3 2 . Device 2 | 1 . . . 1 . . . Storage 2 | 1 . 1 . . . . . Processor 3 | . . 1 . 1 . 1 . Hackware 3 | . . . . . 2 1 . Protection 3 | . . . 1 1 1 . . Artifact . | . . . . . . . . Weapon 11 | 2 2 . 1 2 3 1 . Energy Gun 2 | 1 1 . . . . . . Energy Cannon 2 | . 1 . . . 1 . . Ballistic Gun 1 | 1 . . . . . . . Ballistic Cannon 2 | . . . . 1 1 . . Launcher . | . . . . . . . . Special Weapon 2 | . . . 1 . 1 . . Impact Weapon 1 | . . . . 1 . . . Slashing Weapon . | . . . . . . . . Piercing Weapon . | . . . . . . . . Special Melee Weapon 1 | . . . . . . 1 . Unidentified Prototypes 2 | . . . . . 2 . . Parts Lost 20 | . . . . 3 2 11 4 Power 2 | . . . . . . 2 . Propulsion 10 | . . . . 2 . 4 4 Utility 6 | . . . . 1 1 4 . Weapon 2 | . . . . . 1 1 . Highest Loss Streak 8 | . . . . 1 2 8 3 To Critical Strikes . | . . . . . . . . Average Backups 10 | 2 4 8 10 19 6 4 5 Power . | . 1 1 1 1 1 . . Propulsion 3 | 1 2 2 4 7 1 1 1 Utility 3 | . 1 3 2 6 1 . . Weapon 1 | . . 1 1 2 . 1 2 Tool/Special . | . . . . . . . . Unused Backups 15 | . . . . 3 11 . 1 Power 1 | . . . . . 1 . . Propulsion 6 | . . . . 1 4 . 1 Utility 5 | . . . . . 5 . . Weapon 2 | . . . . 1 1 . . Tool/Special 1 | . . . . 1 . . . Average Slot Usage (%) 92 | . 100 100 99 98 95 66 9 Engine 9 | . 14 14 11 9 7 2 . Treads 20 | . 28 28 22 26 1 . . Flight 5 | . . . . . 32 23 7 Device 8 | . 14 12 11 9 3 . . Storage 9 | . 14 14 11 9 1 . . Processor 6 | . . 1 11 9 7 7 . Hackware 2 | . . . . . 9 16 . Protection 5 | . . . 10 9 7 1 . Energy Gun 1 | . 13 . . . . . . Energy Cannon 8 | . . 14 9 9 6 3 . Ballistic Gun 6 | . 14 14 11 1 . . . Ballistic Cannon 3 | . . . . 7 7 1 . Impact Weapon 3 | . . . . 7 7 3 . Peak Build Rating 39 | 7 8 8 13 21 39 39 13 Average Rating 15 | 5 7 7 10 18 34 25 6 On Entrance 13 | . 7 8 8 13 20 39 9 Avg Prop Armor Cover (%) . | . . . . . . . . Naked Turns 75 | . . . . . . . 75 Heaviest Build 102 | 14 16 91 96 102 102 23 . Greatest Support 60 | 40 40 40 40 60 40 25 18 Greatest Overweight (x) 5 | . . 2 2 2 5 1 . Average Overweight (x) . | . . 1 2 1 . . . Largest Inventory Capacity 25 | 8 8 25 25 25 25 5 5 Average Capacity 18 | 7 8 23 25 25 7 5 5 Most Carried 25 | 3 8 12 18 25 25 5 5 Average Carried 12 | 2 4 10 13 22 6 4 5 Final Capacity 25 | 8 8 25 25 25 5 5 5 Final Carried 25 | 3 8 12 18 25 5 5 5 Class Distribution -------------------- 70% | Mutant 12% | Scavenger-Mutant 6% | Hacker-Sprinter 3% | Tank Dominant Class ---------------- Mutant | -10/Materials Mutant | -10/Mines Mutant | -9/Materials Mutant | -8/Materials Hacker-Sprinter | -7/Factory Commander-Mutant | -7/Storage Mutant | -6/Factory Resources | -11 -10 -10 -9 -8 -7 -7 -6 ----------- Run | Yrd Mat Min Mat Mat Fac Sto Fac Matter Collected 785 | 281 28 53 101 205 98 13 6 Remotely . | . . . . . . . . Salvage Created 866 | 100 108 32 181 337 108 . . Parts 56 | 7 4 3 19 19 4 . . Haulers Intercepted . | . . . . . . . . Recyclers Shooed . | . . . . . . . . Parts Field Recycled . | . . . . . . . . Retrieved Matter . | . . . . . . . . Parts Self-Destructed . | . . . . . . . . Prevented . | . . . . . . . . Parts Restored . | . . . . . . . . Kills | -11 -10 -10 -9 -8 -7 -7 -6 ------- Run | Yrd Mat Min Mat Mat Fac Sto Fac Combat Hostiles Destroyed 24 | . 2 2 6 9 5 . . Guns 6 | . 2 . 4 . . . . Cannons 15 | . . 2 2 7 4 . . Classes Destroyed 7 | 2 2 1 1 1 . . . Tunneler 2 | 2 . . . . . . . Recycler 1 | 1 . . . . . . . Watcher 5 | . 1 . 1 3 . . . Swarmer 14 | . . 2 4 4 4 . . Grunt 7 | . 2 . 1 3 1 . . Brawler 1 | . . . . 1 . . . Sentry 2 | . . . 1 1 . . . Best Kill Streak 5 | 3 1 2 4 5 4 . . Combat Bots Only 5 | . 1 2 4 5 4 . . Max Kills in Single Turn 1 | 1 1 1 1 1 1 . . Gunslinging . | . . . . . . . . Exploded . | . . . . . . . . Melee . | . . . . . . . . Uniques/NPCs Destroyed . | . . . . . . . . Combat | -11 -10 -10 -9 -8 -7 -7 -6 -------- Run | Yrd Mat Min Mat Mat Fac Sto Fac Hostile Shots Fired 413 | . 24 6 22 65 39 195 62 Missed 178 | . 5 2 5 21 17 101 27 Hits 235 | . 19 4 17 44 22 94 35 Melee 2 | . . . . 2 . . . Projectile 233 | . 19 4 17 42 22 94 35 Critical Strikes 6 | . . . 1 1 . 2 2 Damage Taken 3234 | . 223 34 167 516 326 1042 926 Core 1519 | . 50 . 20 71 57 465 856 Absorbed by Shields . | . . . . . . . . Core Remaining (%) 77 | 100 . 80 95 87 . 25 . Volleys Fired 94 | 5 11 3 20 34 21 . . Largest 2 | 2 2 2 2 2 2 . . Hottest 117 | 60 60 80 100 100 117 . . Shots Fired 168 | 10 21 6 37 64 30 . . Gun 51 | 10 21 3 17 . . . . Cannon 110 | . . 3 17 60 30 . . Launcher . | . . . . . . . . Special 7 | . . . 3 4 . . . Kinetic 87 | 5 11 3 17 30 21 . . Thermal 81 | 5 10 3 20 34 9 . . Explosive . | . . . . . . . . Electromagnetic . | . . . . . . . . Robot Hit Streak 8 | 5 7 2 7 8 3 . . Robot Miss Streak 6 | 1 3 1 2 6 6 . . Penetration Max . | . . . . . . . . Secondary Targets . | . . . . . . . . Shots Hit Robots 93 | 8 14 3 17 34 15 2 . Core Hits 39 | 4 6 1 9 14 5 . . Critical Kills 1 | . . . . 1 . . . Critical Parts Destroyed . | . . . . . . . . Critical Strikes 3 | . . . . 3 . . . Meltdown 1 | . . . . 1 . . . Blast 1 | . . . . 1 . . . Smash 1 | . . . . 1 . . . Melee Attacks 37 | . . . . 9 17 11 . Impact 35 | . . . . 9 17 9 . Slashing . | . . . . . . . . Piercing . | . . . . . . . . Sneak Attacks 2 | . . . . . . 2 . Combat Hostiles . | . . . . . . . . Follow-up Attacks . | . . . . . . . . Damage Inflicted 1880 | 100 183 49 259 840 430 19 . Guns 376 | 100 176 14 86 . . . . Cannons 1303 | . . 35 173 709 386 . . Explosions . | . . . . . . . . Melee 175 | . . . . 131 44 . . Ramming 26 | . 7 . . . . 19 . Kinetic 936 | 55 88 14 86 377 316 . . Thermal 743 | 45 88 35 173 332 70 . . Explosive . | . . . . . . . . Electromagnetic . | . . . . . . . . Impact 175 | . . . . 131 44 . . Slashing . | . . . . . . . . Piercing . | . . . . . . . . Highest Corruption 13 | . . . . . 4 13 1 Average Corruption 5 | . . . . . 4 11 1 Corruption Purged . | . . . . . . . . Corruption Blocked . | . . . . . . . . Effects 21 | . . . . . 11 10 . Message Errors 2 | . . . . . 1 1 . Matter Fused 4 | . . . . . 2 2 . Heat Flow Errors 4 | . . . . . 3 1 . Energy Discharges 3 | . . . . . 3 . . Parts Rejected 1 | . . . . . . 1 . Data Loss (minor) 3 | . . . . . 1 2 . Data Loss (major) 1 | . . . . . 1 . . Misdirections 3 | . . . . . . 3 . Overload Shots . | . . . . . . . . Overflow Damage 45 | . . 11 . 11 23 . . Projectiles 26 | . . 11 . 11 4 . . Explosions . | . . . . . . . . Melee 19 | . . . . . 19 . . Knockbacks 1 | . . . . 1 . . . Impact . | . . . . . . . . Kinetic 1 | . . . . 1 . . . Secondary . | . . . . . . . . Self-Inflicted Damage 9 | . . . . . . 9 . Shots . | . . . . . . . . Rammed 3 | . 1 . . . . 2 . Targets Rammed 3 | . 1 . . . . 2 . Kicked . | . . . . . . . . Crushed . | . . . . . . . . Highest Temperature 377 | . 27 54 108 273 377 194 . Average Temperature 97 | . 16 29 29 69 149 66 . Received Heat Transfer 759 | . 123 . 36 135 54 348 63 Effects 6 | . . . . 3 3 . . Energy Bleed 1 | . . . . . 1 . . Interference 3 | . . . . 3 . . . Matter Decay 1 | . . . . . 1 . . Damage (minor) 1 | . . . . . 1 . . Siege Activations . | . . . . . . . . Martial Activations . | . . . . . . . . Shielding Activations . | . . . . . . . . Robots Disrupted . | . . . . . . . . Combat Hostiles . | . . . . . . . . Robots Corrupted 2 | . . . . 1 1 . . Combat Hostiles 2 | . . . . 1 1 . . Parts Fried . | . . . . . . . . Impact Corruptions 2 | . . . . 1 1 . . Robots Melted 1 | . . . . 1 . . . Combat Hostiles 1 | . . . . 1 . . . Parts Melted 5 | . . . . 5 . . . Heat Transferred 1584 | 100 200 74 370 703 137 . . Parts Sabotaged . | . . . . . . . . Parts Stolen . | . . . . . . . . Parts Stripped . | . . . . . . . . Power Chain Reactions . | . . . . . . . . Alert | -11 -10 -10 -9 -8 -7 -7 -6 ------- Run | Yrd Mat Min Mat Mat Fac Sto Fac Maximum Alert Level 1 | . . . . 1 . . . Low Security (%) 99 | 100 100 100 100 99 100 100 100 Level 1 . | . . . . . . . . Level 2 . | . . . . . . . . Level 3 . | . . . . . . . . Level 4 . | . . . . . . . . Level 5 . | . . . . . . . . High Security . | . . . . . . . . Max Security . | . . . . . . . . Peak Influence 202 | 10 36 42 90 202 141 98 45 Initial 56 | . . . . 5 42 56 27 Average 36 | 1 7 3 20 76 56 39 17 Influence Increases 1394 | 15 77 50 178 379 274 331 90 Destroy 0b10 Robot/C 600 | . 40 40 120 180 100 120 . Destroy 0b10 Robot/NC 40 | 15 5 . 5 15 . . . Destroy Leader 130 | . 12 10 32 36 20 20 . Allied During Kill 19 | . . . . . . 19 . Successful Hack 19 | . 4 . 2 9 4 . . Disable Machine 45 | . . . 15 15 . 15 . Destroy Structure 46 | . 1 . 4 19 15 7 . Partial Spotted 60 | . . . . 15 30 15 . Lose Combat Pursuer 435 | . 15 . . 90 105 135 90 Influence Decreases 1359 | 15 77 50 164 299 243 396 115 Entered New Map 163 | . . . . 9 52 69 33 Time Decay 869 | 15 77 50 164 260 171 70 62 Lost Part 160 | . . . . 30 20 90 20 Lost Ally 167 | . . . . . . 167 . Squads Dispatched 13 | . 2 . 2 2 1 4 2 Investigation 1 | . 1 . . . . . . Extermination 2 | . . . . . . 1 1 Reinforcement 9 | . 1 . 2 2 1 2 1 Assault . | . . . . . . . . Garrison 1 | . . . . . . 1 . Intercept . | . . . . . . . . Searches Triggered . | . . . . . . . . Construction Impeded 1 | . . . . . 1 . . Haulers Reinforced . | . . . . . . . . Active Scanning Responses . | . . . . . . . . Cargo Convoy Interrupts . | . . . . . . . . Stealth | -11 -10 -10 -9 -8 -7 -7 -6 --------- Run | Yrd Mat Min Mat Mat Fac Sto Fac Distress Signals 6 | . 2 . . 2 . 2 . Communications Jammed . | . . . . . . . . Distress Signals . | . . . . . . . . Times Spotted 100 | . 10 3 9 28 13 26 11 Peak Tracking Total 14 | . 4 3 4 8 4 14 5 Tactical Retreats 13 | . 1 . . 3 3 4 2 Traps | -11 -10 -10 -9 -8 -7 -7 -6 ------- Run | Yrd Mat Min Mat Mat Fac Sto Fac Traps Triggered 6 | . 1 . . . . 2 3 Indirectly . | . . . . . . . . Trap Hack Attempts . | . . . . . . . . Triggered . | . . . . . . . . Disarmed . | . . . . . . . . Reprogrammed . | . . . . . . . . Reused . | . . . . . . . . Traps Extracted . | . . . . . . . . Installed 3 | . . 1 . 2 . . . Triggered . | . . . . . . . . Most Traps Carried 4 | . . 4 3 3 1 . . Machines | -11 -10 -10 -9 -8 -7 -7 -6 ---------- Run | Yrd Mat Min Mat Mat Fac Sto Fac Machines Disabled 3 | . . . 1 1 . 1 . Max in Single Turn 1 | . . . 1 1 . . . Machines Repaired . | . . . . . . . . Machines Dismantled . | . . . . . . . . Machines Sabotaged . | . . . . . . . . Overloaded Fab Kills . | . . . . . . . . Hacking | -11 -10 -10 -9 -8 -7 -7 -6 --------- Run | Yrd Mat Min Mat Mat Fac Sto Fac Machines Accessed 10 | . 2 . 1 4 2 1 . Terminals 8 | . 2 . . 3 2 1 . Fabricators . | . . . . . . . . Repair Stations . | . . . . . . . . Recycling Units . | . . . . . . . . Scanalyzers 2 | . . . 1 1 . . . Garrison Access . | . . . . . . . . Total Hacks 20 | . 5 . 2 9 3 1 . Successful 9 | . 3 . 1 3 1 1 . Failed 11 | . 2 . 1 6 2 . . Catastrophic . | . . . . . . . . Database Lockouts . | . . . . . . . . Manual 16 | . 5 . . 8 1 2 . Terminals 17 | . 5 . . 8 3 1 . Fabricators . | . . . . . . . . Repair Stations . | . . . . . . . . Recycling Units . | . . . . . . . . Scanalyzers 3 | . . . 2 1 . . . Garrison Access . | . . . . . . . . Terminal Hacks 1 | . . . . . . 1 . Open Door 1 | . . . . . . 1 . Fabricator Hacks . | . . . . . . . . Repair Station Hacks . | . . . . . . . . Recycling Unit Hacks . | . . . . . . . . Scanalyzer 2 | . . . 1 1 . . . Retrieve Study 2 | . . . 1 1 . . . Garrison Access Hacks . | . . . . . . . . Unauthorized Hacks 6 | . 3 . . 2 1 . . Terminals 6 | . 3 . . 2 1 . . Assimilate 1 | . 1 . . . . . . Botnet 5 | . 2 . . 2 1 . . Fabricators . | . . . . . . . . Repair Stations . | . . . . . . . . Recycling Units . | . . . . . . . . Scanalyzers . | . . . . . . . . Garrison Access . | . . . . . . . . Data Cores Recovered . | . . . . . . . . Used . | . . . . . . . . Hacking Detections 6 | . 2 . 1 1 1 1 . Full Trace Events . | . . . . . . . . Feedback Events . | . . . . . . . . Feedback Blocked . | . . . . . . . . Robot Schematics Acquired . | . . . . . . . . Robots Built . | . . . . . . . . Authchips . | . . . . . . . . Time . | . . . . . . . . Total Robot Build Rating . | . . . . . . . . Part Schematics Acquired . | . . . . . . . . Parts Built . | . . . . . . . . Authchips . | . . . . . . . . Time . | . . . . . . . . Total Part Build Rating . | . . . . . . . . Part Studies Acquired 2 | . . . 1 1 . . . Parts Repaired . | . . . . . . . . Time . | . . . . . . . . Parts Recycled . | . . . . . . . . Recycled Matter . | . . . . . . . . Retrieved Matter . | . . . . . . . . Retrieved Components . | . . . . . . . . Parts Scanalyzed . | . . . . . . . . Part Schematics Acquired . | . . . . . . . . Parts Damaged . | . . . . . . . . Bothacking | -11 -10 -10 -9 -8 -7 -7 -6 ------------ Run | Yrd Mat Min Mat Mat Fac Sto Fac Used RIF Installer . | . . . . . . . . Robots Hacked . | . . . . . . . . Non-combat . | . . . . . . . . Combat . | . . . . . . . . Robot Hacks Applied . | . . . . . . . . Relay Couplers Released . | . . . . . . . . Fabnet Peak Effective % . | . . . . . . . . Robots Rewired 2 | . . . . . . 2 . Allies Hacked . | . . . . . . . . Hacks Repelled . | . . . . . . . . Allies | -11 -10 -10 -9 -8 -7 -7 -6 -------- Run | Yrd Mat Min Mat Mat Fac Sto Fac Total Allies 12 | . . . . . . 12 . Largest Group 10 | . . . . . . 10 . Highest-Rated Group 173 | . . . . . . 173 . Highest-Rated Ally 31 | . . . . . . 31 . Total Orders . | . . . . . . . . Ally Attacks 66 | . . . . . . 66 . Total Damage 851 | . . . . . . 851 . Kills 7 | . . . . . . 7 . Allies Corrupted . | . . . . . . . . Allies Melted . | . . . . . . . . Intel | -11 -10 -10 -9 -8 -7 -7 -6 ------- Run | Yrd Mat Min Mat Mat Fac Sto Fac Active Infowar (turns) 2677 | 29 357 646 536 906 203 . . Seismic 2677 | 29 357 646 536 906 203 . . Robot Analysis Total . | . . . . . . . . Derelict Logs Recovered 1 | . . 1 . . . . . Drone Launches . | . . . . . . . . Drone Recoveries . | . . . . . . . . Exploration | -11 -10 -10 -9 -8 -7 -7 -6 ------------- Run | Yrd Mat Min Mat Mat Fac Sto Fac Turns Passed 3524 | 110 357 733 536 1034 404 174 176 Spaces Moved 2553 | 55 135 232 185 419 738 375 414 Core 166 | 5 . . . . . . 161 Treads 1029 | 50 135 232 185 419 8 . . Legs . | . . . . . . . . Wheels . | . . . . . . . . Hover . | . . . . . . . . Flight 1358 | . . . . . 730 375 253 Fastest Speed 25 | 50 160 160 240 200 25 25 34 Average Speed 111 | 150 160 294 248 203 32 35 41 Slowest Speed 378 | 160 160 320 320 240 378 102 50 Overloaded Moves . | . . . . . . . . Propulsion Burnouts . | . . . . . . . . Robots Hopped 5 | . . . . . . 3 2 Potential Cave-ins 6 | . . . . . . 6 . Cave-ins Triggered 1 | . . . . . . 1 . Exploration Rate (%) 32 | 5 26 51 21 45 23 74 15 Regions Visited 7 Branch Regions 2 Pre-discovered Areas . | . . . . . . . . Known Exits Taken 4 | . . 1 1 1 1 . . Unknown Exits Taken 3 | 1 1 . . . . 1 . Scrap Searched 1 | . . 1 . . . . . Spaces Dug 38 | . . . 3 9 17 9 . Terrain Destroyed 48 | . . . 3 19 17 9 . Melee 30 | . . . . 6 15 9 . Projectile 18 | . . . 3 13 2 . . AOE . | . . . . . . . . Terrain Rammed . | . . . . . . . . Walls Destroyed . | . . . . . . . . Machines Disabled . | . . . . . . . . Actions | -11 -10 -10 -9 -8 -7 -7 -6 --------- Run | Yrd Mat Min Mat Mat Fac Sto Fac Total 3007 | 69 255 278 218 520 855 397 415 Wait 194 | . 99 33 . 27 35 . . Move 2538 | 54 135 231 184 418 737 369 410 Hop 4 | . . . . . . 2 2 Pick Up 41 | 3 5 6 8 15 4 . . Fast Attach 23 | 7 2 . . 1 3 7 3 Attach 15 | . . . 2 4 6 3 . Detach 9 | . 1 . . 1 4 3 . Swap 14 | . . 2 3 3 6 . . Drop 33 | . 2 2 1 6 22 . . Fire 94 | 5 11 3 20 34 21 . . Melee 37 | . . . . 9 17 11 . Ram 2 | . . . . . . 2 . Kick . | . . . . . . . . Crush . | . . . . . . . . Escape Stasis . | . . . . . . . . Rewire . | . . . . . . . . Trap 3 | . . 1 . 2 . . . Miscellaneous . | . . . . . . . . Route ------- -11/Scrapyard -10/Materials (discovered 2 exits: [*Min x2]) -10/Mines (discovered 2 exits: *Mat x2) -9/Materials (discovered 2 exits: *Mat / [*Min]) -8/Materials -7/Factory (discovered 2 exits: *Sto / *Low) -7/Storage -6/Factory History --------- Turn | Location | Event 10 | -11/Scrapyard | Discovered new exit (range 15) 111 | -11/Scrapyard | Entered Materials 302 | -10/Materials | Build established: Mutant 406 | -10/Materials | Discovered new exit (range 7) 425 | -10/Materials | Discovered new exit (range 13) 468 | -10/Materials | Entered Mines 532 | -10/Mines | Met a Derelict bent on vengeance 659 | -10/Mines | Found a hidden stash of uninstalled traps 874 | -10/Mines | Learned 2 Materials zone layouts 1049 | -10/Mines | Discovered new exit (range 12) 1100 | -10/Mines | Discovered new exit (range 6) 1127 | -10/Mines | Identified exit to Materials 1201 | -10/Mines | Entered Materials 1201 | -9/Materials | Evolved 2 slots: Utility x2 1356 | -9/Materials | Discovered new exit (range 11) 1698 | -9/Materials | Discovered new exit (range 10) 1732 | -9/Materials | Identified exit to Materials 1737 | -9/Materials | Entered another Materials area 1737 | -8/Materials | Evolved 2 slots: Propulsion x1, Weapon x1 2635 | -8/Materials | Build established: Scavenger-Mutant 2687 | -8/Materials | Discovered new exit (range 16) 2768 | -8/Materials | Identified exit to Factory 2771 | -8/Materials | Entered Factory 2771 | -7/Factory | Evolved 2 slots: Propulsion x2 3039 | -7/Factory | Discovered new exit (range 14) 3086 | -7/Factory | Identified exit to Lower Caves 3173 | -7/Factory | Discovered new exit (range 8) 3175 | -7/Factory | Identified exit to Storage 3175 | -7/Factory | Entered Storage 3180 | -7/Storage | Met a pair of Derelict thieves 3203 | -7/Storage | Crushed by falling debris 3203 | -7/Storage | System corruption reached 10% 3252 | -7/Storage | Assisted by bots powering up and referring to "LRC-V3" 3278 | -7/Storage | Garrison activated, responded to threat 3297 | -7/Storage | Lost 8 parts (1p4n2u1w) 3306 | -7/Storage | Core integrity fell below 50% 3343 | -7/Storage | Discovered new exit (range 15) 3349 | -7/Storage | Entered Factory 3349 | -6/Factory | Evolved 2 slots: Utility x2 3483 | -6/Factory | Core integrity fell below 50% 3512 | -6/Factory | Core integrity fell below 20% 3520 | -6/Factory | Lost 3 parts (3n) 3525 | -6/Factory | Destroyed by H-66 Slayer with Gauss Rifle Last Messages --------------- 03455_ Penetrated by Slug. 03455_ Knocked back. 03471_ Slug penetrates Wall. 03471_ Xenon Bombardment Thruster destroyed. 03482_ Knocked back. 03484_ Acquired 3 matter. 03485_ ALERT: Potential suspicious activity detected, Programmers report to Factory Zone 5G. 03487_ Acquired 3 matter. 03489_ Xenon Bombardment Thruster destroyed. 03489_ Critical hit (Blast). 03489_ Knocked back. 03506_ ALERT: Hostiles spotted, dispatching reinforcements to Terminal F003. 03522_ Penetrated by Slug. 03522_ Slug penetrates Wall. 03522_ Penetrated by Slug. 03525_ Slug penetrates Wall. 03525_ Penetrated by Slug. Map ----- +----------------------------------------------------+ | ???########### " " # # [ ?????????????????????? | | ?????????????# " " # # ??? ""? ????????????? | | ?????????????# " " # # """ """ #???????????? | | ?????????????# " " # # """ """ #???????????? | | ?????????????# ?"?" # # #???????????? | | ?????????????#????" # # """ """ #???????????? | | ??????????????????? # #! """ """ #???????????? | | ??????????????????? # # """ """ #???????????? | | ???????????????????## # #???????????? | | ????????????????????# # = #???????????? | | ????????????????????# # ! / #???????????? | | ??????????????????### ######+##############????? | | ??????????????????# #????? | | ??????????????????# #????? | | ??????????????????# "" """ #????? | | ??????????????????# "" """ +????? | | ??????????????????# p "T """ #????? | | ??????????????????# "" #????? | | ??????????????????# "" """ #????? | | ??????????????????# ######## """ #????? | | ??????????????????# #??????# """ #????? | | ??????????????????# h #??????# #????? | | ??????????????????# #??????# #????? | | ??????????????????# h #??????############????? | | ??????????????????# #??????????????????????? | | ??????????????????+ @#??????????????????????? | | ??????????????????# #??????????????????????? | | ??????????????????# #??????????????????????? | | ??????????????????# #??????????????????????? | | ??????????????????# #??????????????????????? | | ??????????????????# #??????????????????????? | | ??????????????????# #??????????????????????? | | ??????????????????# #??????????????????????? | | ??????????????????# #??????????????????????? | | ??????????????????# ???????????????????????? | | ??????????????????# ???????????????????????? | | ??????????????????# ???????????????????????? | | ??????????????????# ???????????????????????? | | ??????????????????# ???????????????????????? | | ????????????????????? ???????????????????????? | | ??????????????????????? ???????????????????????? | | ?????????????????????????????????????????????????? | | ?????????????????????????????????????????????????? | | ?????????????????????????????????????????????????? | | ?????????????????????????????????????????????????? | | ?????????????????????????????????????????????????? | | ?????????????????????????????????????????????????? | | ?????????????????????????????????????????????????? | | ?????????????????????????????????????????????????? | | ?????????????????????????????????????????????????? | +----------------------------------------------------+ Best States ------------- Heat Dissipation 37 Energy Generation 15 Energy Capacity 265 Matter Stores 300 Matter Capacity 300 Sight Range 16 Terrain Scan Density 10 Armor Coverage 150 Evasion (%) 65 Targeting Accuracy 6 Recoil Reduction 3 Offensive Hacking 20 Defensive Hacking 10 Item Schematics ----------------- None Robot Schematics ------------------ None Fabricated ------------ Nothing Repaired ---------- Nothing Studied --------- Lgt. Treads | -9/Materials | Hacked Hvy. Flail | -8/Materials | Hacked Alien Tech Used ----------------- None Achievements -------------- None Challenges ------------ None Game ------ Seed CloakingVortexBuckler Manual? 0 Play Time 00:31:48 Cumulative 61.7 hours Start 2026.03.12 @ 20:56:21 End 2026.03.12 @ 21:28:40 Sessions 1 Manual Loads 0 Difficulty Rogue Special Mode None Game No. 141 Rogue 141 Adventurer 0 Explorer 0 Win Type - Total 0 Types 0/0/0/0/0/0/0/0/0/0 Lore% 36 Gallery% 42 Achievement% 33 Wizard Run 0 Options --------- Layout 2 ASCII 0 Keyboard 1 Movement Arrows Keybinds 0 Fullscreen 1 Font 24/Smallcaps Map View 50x44 Zoom Use 0% Tactical HUD 1 Map Filters NONE Filters NONE Steam 1 RUN: 396eb8ab-d014-496f-8011-fce72902b5cb